[Event "Early-Titled-Tuesday-Blitz-October-24-2023"]
[Site "Chess.com"]
[Date "2023.10.24"]
[Round "5"]
[White "Magila31"]
[Black "LiemLe"]
[Result "0-1"]
[WhiteElo "2389"]
[BlackElo "2957"]
[TimeControl "180+1"]
[EndTime "8:52:35 PDT"]
[Termination "LiemLe won by resignation"]

1. Nf3 {[%clk 0:02:59.1]} 1... d5 {[%clk 0:02:59.2]} 2. g3 {[%clk 0:02:58.3]}
2... g6 {[%clk 0:02:59.1]} 3. Bg2 {[%clk 0:02:58.3]} 3... Bg7 {[%clk 0:02:59.7]}
4. d4 {[%clk 0:02:58.4]} 4... Nf6 {[%clk 0:02:59.4]} 5. O-O {[%clk 0:02:57.8]}
5... O-O {[%clk 0:02:59.6]} 6. Nbd2 {[%clk 0:02:55.6]} 6... a5 {[%clk
0:02:54.4]} 7. a4 {[%clk 0:02:54.4]} 7... Nc6 {[%clk 0:02:52.8]} 8. c3 {[%clk
0:02:53.9]} 8... Re8 {[%clk 0:02:51.9]} 9. Nb3 {[%clk 0:02:40.8]} 9... e5 {[%clk
0:02:50.8]} 10. dxe5 {[%clk 0:02:40.2]} 10... Nxe5 {[%clk 0:02:51.7]} 11. Nxe5
{[%clk 0:02:39]} 11... Rxe5 {[%clk 0:02:52.6]} 12. Bf4 {[%clk 0:02:37.3]} 12...
Re8 {[%clk 0:02:52.4]} 13. e4 {[%clk 0:02:31.2]} 13... Nxe4 {[%clk 0:02:50.3]}
14. Re1 {[%clk 0:02:15.3]} 14... Bf5 {[%clk 0:02:21.2]} 15. f3 {[%clk
0:02:14.5]} 15... Nf6 {[%clk 0:02:16.1]} 16. Rxe8+ {[%clk 0:02:08.2]} 16... Nxe8
{[%clk 0:02:17]} 17. g4 {[%clk 0:02:03.8]} 17... Be6 {[%clk 0:02:15.2]} 18. Nc5
{[%clk 0:02:00.5]} 18... c6 {[%clk 0:02:07.7]} 19. Nxe6 {[%clk 0:01:52.4]} 19...
fxe6 {[%clk 0:02:08.6]} 20. Qe2 {[%clk 0:01:52.8]} 20... Qf6 {[%clk 0:01:59.3]}
21. Bg3 {[%clk 0:01:49.8]} 21... e5 {[%clk 0:01:59.4]} 22. Re1 {[%clk
0:01:47.8]} 22... Nd6 {[%clk 0:01:57.6]} 23. Bxe5 {[%clk 0:01:44.4]} 23... Qxe5
{[%clk 0:01:58.5]} 24. Qxe5 {[%clk 0:01:44.4]} 24... Bxe5 {[%clk 0:01:59.4]} 25.
Rxe5 {[%clk 0:01:44.6]} 25... Nc4 {[%clk 0:02:00]} 26. Re7 {[%clk 0:01:44.8]}
26... Nxb2 {[%clk 0:02:00]} 27. Rxb7 {[%clk 0:01:37.9]} 27... Nxa4 {[%clk
0:02:00.3]} 28. c4 {[%clk 0:01:35.3]} 28... d4 {[%clk 0:01:44.2]} 29. f4 {[%clk
0:01:27.2]} 29... Ra6 {[%clk 0:01:41.1]} 30. Rd7 {[%clk 0:01:23.1]} 30... Nc3
{[%clk 0:01:39.7]} 31. Bf1 {[%clk 0:01:06.2]} 31... c5 {[%clk 0:01:39.1]} 0-1

[Event "Early-Titled-Tuesday-Blitz-October-24-2023"]
[Site "Chess.com"]
[Date "2023.10.24"]
[Round "5"]
[White "MKlose11"]
[Black "Levanzovsky"]
[Result "1-0"]
[WhiteElo "2634"]
[BlackElo "2477"]
[TimeControl "180+1"]
[EndTime "8:52:37 PDT"]
[Termination "MKlose11 won by resignation"]

1. e4 {[%clk 0:02:57.8]} 1... c5 {[%clk 0:02:57.2]} 2. Nc3 {[%clk 0:02:53.9]}
2... Nc6 {[%clk 0:02:55.7]} 3. g3 {[%clk 0:02:54.8]} 3... e6 {[%clk 0:02:53.4]}
4. Bg2 {[%clk 0:02:55.7]} 4... Nf6 {[%clk 0:02:53.1]} 5. d3 {[%clk 0:02:56.6]}
5... d5 {[%clk 0:02:52.6]} 6. Nge2 {[%clk 0:02:53.6]} 6... Be7 {[%clk
0:02:51.8]} 7. O-O {[%clk 0:02:52.9]} 7... O-O {[%clk 0:02:51.7]} 8. exd5 {[%clk
0:02:52]} 8... Nxd5 {[%clk 0:02:44.1]} 9. Nxd5 {[%clk 0:02:51.4]} 9... exd5
{[%clk 0:02:43.7]} 10. d4 {[%clk 0:02:52]} 10... Bg4 {[%clk 0:02:29.4]} 11. dxc5
{[%clk 0:02:47.7]} 11... Bxc5 {[%clk 0:02:28.9]} 12. h3 {[%clk 0:02:45.5]} 12...
Bh5 {[%clk 0:02:27.8]} 13. g4 {[%clk 0:02:43.8]} 13... Bg6 {[%clk 0:02:27.6]}
14. Nf4 {[%clk 0:02:41.8]} 14... d4 {[%clk 0:02:21.5]} 15. a3 {[%clk 0:02:32.8]}
15... a5 {[%clk 0:02:13.7]} 16. Nxg6 {[%clk 0:02:26.5]} 16... hxg6 {[%clk
0:02:05.8]} 17. Qd3 {[%clk 0:02:26.5]} 17... Qd6 {[%clk 0:02:02.2]} 18. Bd2
{[%clk 0:02:20.3]} 18... Rfe8 {[%clk 0:01:45.9]} 19. Rfe1 {[%clk 0:02:20.2]}
19... Bb6 {[%clk 0:01:44]} 20. Qb5 {[%clk 0:02:06.3]} 20... Bc7 {[%clk
0:01:38.5]} 21. Qxb7 {[%clk 0:02:05.8]} 21... Ne5 {[%clk 0:01:22.6]} 22. Bf4
{[%clk 0:01:41.5]} 22... Nf3+ {[%clk 0:01:20.1]} 23. Qxf3 {[%clk 0:01:40.7]}
23... Qxf4 {[%clk 0:01:16.8]} 24. Qxf4 {[%clk 0:01:40.9]} 24... Bxf4 {[%clk
0:01:17.7]} 25. Bxa8 {[%clk 0:01:36.7]} 25... Rxa8 {[%clk 0:01:18.6]} 26. Re4
{[%clk 0:01:34.9]} 26... g5 {[%clk 0:01:18.8]} 27. Rd1 {[%clk 0:01:31.9]} 27...
Rb8 {[%clk 0:01:17.8]} 28. b3 {[%clk 0:01:31.5]} 28... a4 {[%clk 0:01:17.8]} 29.
bxa4 {[%clk 0:01:26.4]} 29... Rb2 {[%clk 0:01:14.2]} 30. Rexd4 {[%clk
0:01:24.9]} 30... Rxc2 {[%clk 0:01:14.2]} 31. a5 {[%clk 0:01:23.8]} 31... Ra2
{[%clk 0:01:13.2]} 32. Ra4 {[%clk 0:01:23.7]} 1-0

[Event "Early-Titled-Tuesday-Blitz-October-24-2023"]
[Site "Chess.com"]
[Date "2023.10.24"]
[Round "5"]
[White "kidagent"]
[Black "whiteglovethief"]
[Result "0-1"]
[WhiteElo "2273"]
[BlackElo "2434"]
[TimeControl "180+1"]
[EndTime "8:52:37 PDT"]
[Termination "whiteglovethief won by resignation"]

1. c4 {[%clk 0:03:00.9]} 1... g6 {[%clk 0:02:55.2]} 2. g3 {[%clk 0:03:00]} 2...
Bg7 {[%clk 0:02:55]} 3. Bg2 {[%clk 0:03:00.7]} 3... e5 {[%clk 0:02:53.7]} 4. Nc3
{[%clk 0:02:59.6]} 4... Ne7 {[%clk 0:02:43.8]} 5. e3 {[%clk 0:02:59.3]} 5... O-O
{[%clk 0:02:43.2]} 6. Nge2 {[%clk 0:02:59.9]} 6... c6 {[%clk 0:02:43.5]} 7. d4
{[%clk 0:02:55.4]} 7... exd4 {[%clk 0:02:44.4]} 8. exd4 {[%clk 0:02:52.7]} 8...
d5 {[%clk 0:02:44.9]} 9. b3 {[%clk 0:02:48]} 9... dxc4 {[%clk 0:02:44.5]} 10.
bxc4 {[%clk 0:02:47.2]} 10... c5 {[%clk 0:02:45.4]} 11. d5 {[%clk 0:02:42.1]}
11... Bg4 {[%clk 0:02:45.1]} 12. Bd2 {[%clk 0:02:35.2]} 12... Nf5 {[%clk
0:02:42.7]} 13. f3 {[%clk 0:02:22.3]} 13... Bh5 {[%clk 0:02:42.4]} 14. O-O
{[%clk 0:02:06.4]} 14... Bd4+ {[%clk 0:02:28.9]} 15. Nxd4 {[%clk 0:02:01.2]}
15... cxd4 {[%clk 0:02:29.8]} 16. Ne4 {[%clk 0:01:58]} 16... Nd7 {[%clk
0:02:28.1]} 17. g4 {[%clk 0:01:50.9]} 17... Ne3 {[%clk 0:02:26]} 18. Bxe3 {[%clk
0:01:48.4]} 18... dxe3 {[%clk 0:02:26.9]} 19. gxh5 {[%clk 0:01:48.1]} 19... f5
{[%clk 0:02:27.8]} 20. Ng3 {[%clk 0:01:34.7]} 20... f4 {[%clk 0:02:25.7]} 21.
hxg6 {[%clk 0:01:26.1]} 21... fxg3 {[%clk 0:02:24.8]} 22. gxh7+ {[%clk
0:01:26.1]} 22... Kxh7 {[%clk 0:02:24.3]} 23. Qd3+ {[%clk 0:01:22.1]} 23... Kh8
{[%clk 0:02:16.7]} 24. Qxe3 {[%clk 0:01:21.1]} 24... gxh2+ {[%clk 0:02:16.3]}
25. Kh1 {[%clk 0:01:19.4]} 25... Qh4 {[%clk 0:02:15.4]} 26. Rae1 {[%clk
0:01:11]} 26... Nf6 {[%clk 0:02:14.1]} 27. Qc3 {[%clk 0:00:59.7]} 27... Kg8
{[%clk 0:02:14.1]} 28. Re7 {[%clk 0:00:51.7]} 28... Nh5 {[%clk 0:02:12.4]} 0-1

[Event "Early-Titled-Tuesday-Blitz-October-24-2023"]
[Site "Chess.com"]
[Date "2023.10.24"]
[Round "5"]
[White "ural58"]
[Black "johnmez"]
[Result "0-1"]
[WhiteElo "2524"]
[BlackElo "2330"]
[TimeControl "180+1"]
[EndTime "8:52:53 PDT"]
[Termination "johnmez won by resignation"]

1. e4 {[%clk 0:02:58]} 1... e6 {[%clk 0:02:59.6]} 2. d4 {[%clk 0:02:56.6]} 2...
d5 {[%clk 0:03:00.2]} 3. Nc3 {[%clk 0:02:56.7]} 3... Bb4 {[%clk 0:02:59.7]} 4.
Ne2 {[%clk 0:02:55.7]} 4... dxe4 {[%clk 0:02:56.7]} 5. a3 {[%clk 0:02:55.7]}
5... Bxc3+ {[%clk 0:02:54.6]} 6. Nxc3 {[%clk 0:02:55.6]} 6... Nf6 {[%clk
0:02:35.3]} 7. Bg5 {[%clk 0:02:52.4]} 7... Nbd7 {[%clk 0:02:16.3]} 8. Nxe4
{[%clk 0:02:51.2]} 8... h6 {[%clk 0:02:15.2]} 9. Nxf6+ {[%clk 0:02:51]} 9...
Nxf6 {[%clk 0:02:15.9]} 10. Be3 {[%clk 0:02:12]} 10... O-O {[%clk 0:02:12.5]}
11. Bd3 {[%clk 0:01:56.8]} 11... b6 {[%clk 0:02:10.1]} 12. Qf3 {[%clk
0:01:55.4]} 12... Qd5 {[%clk 0:01:56.6]} 13. Qxd5 {[%clk 0:01:52.6]} 13... Nxd5
{[%clk 0:01:57.5]} 14. Bd2 {[%clk 0:01:52.6]} 14... Nf6 {[%clk 0:01:51]} 15.
O-O-O {[%clk 0:01:51.3]} 15... Bb7 {[%clk 0:01:51.2]} 16. f3 {[%clk 0:01:50.6]}
16... Rad8 {[%clk 0:01:49.7]} 17. Be3 {[%clk 0:01:50.4]} 17... Nd5 {[%clk
0:01:48.2]} 18. Bf2 {[%clk 0:01:50.5]} 18... Nf4 {[%clk 0:01:46.4]} 19. Bf1
{[%clk 0:01:50.4]} 19... Rd7 {[%clk 0:01:26.3]} 20. Bg3 {[%clk 0:01:45.6]} 20...
Nd5 {[%clk 0:01:22]} 21. Be2 {[%clk 0:01:43.4]} 21... Ne3 {[%clk 0:01:16.5]} 22.
Rd3 {[%clk 0:01:39.9]} 22... Nf5 {[%clk 0:01:05.8]} 23. Bf2 {[%clk 0:01:39.6]}
23... Ba6 {[%clk 0:01:02.4]} 24. Rd2 {[%clk 0:01:33.9]} 24... Bxe2 {[%clk
0:01:02.7]} 25. Rxe2 {[%clk 0:01:34.1]} 25... Nxd4 {[%clk 0:00:59.4]} 26. Rd2
{[%clk 0:01:34.1]} 26... Rfd8 {[%clk 0:00:59.8]} 27. Rhd1 {[%clk 0:01:33.5]}
27... Ne2+ {[%clk 0:00:56.7]} 0-1

[Event "Early-Titled-Tuesday-Blitz-October-24-2023"]
[Site "Chess.com"]
[Date "2023.10.24"]
[Round "5"]
[White "campochess"]
[Black "Juicy_Fork"]
[Result "0-1"]
[WhiteElo "2189"]
[BlackElo "2444"]
[TimeControl "180+1"]
[EndTime "8:52:55 PDT"]
[Termination "Juicy_Fork won by resignation"]

1. e4 {[%clk 0:02:55.3]} 1... e5 {[%clk 0:02:59.8]} 2. Bc4 {[%clk 0:02:51.3]}
2... Nf6 {[%clk 0:02:59.6]} 3. d3 {[%clk 0:02:50.7]} 3... Nc6 {[%clk 0:02:56]}
4. c3 {[%clk 0:02:47.5]} 4... Be7 {[%clk 0:02:51.1]} 5. Bg5 {[%clk 0:02:35.6]}
5... O-O {[%clk 0:02:46.8]} 6. Nf3 {[%clk 0:02:30.5]} 6... a6 {[%clk 0:02:40.6]}
7. a4 {[%clk 0:02:29]} 7... d6 {[%clk 0:02:39.9]} 8. h3 {[%clk 0:02:27.1]} 8...
h6 {[%clk 0:02:27.6]} 9. Be3 {[%clk 0:02:25.2]} 9... d5 {[%clk 0:02:17.8]} 10.
exd5 {[%clk 0:02:23.3]} 10... Nxd5 {[%clk 0:02:17.2]} 11. O-O {[%clk 0:02:21.8]}
11... Be6 {[%clk 0:02:14.6]} 12. Nbd2 {[%clk 0:02:19.4]} 12... f5 {[%clk
0:02:07.9]} 13. Nb3 {[%clk 0:02:04.4]} 13... Nxe3 {[%clk 0:02:03.7]} 14. fxe3
{[%clk 0:02:03.1]} 14... Bxc4 {[%clk 0:02:03.3]} 15. dxc4 {[%clk 0:02:03.2]}
15... Bf6 {[%clk 0:01:58.3]} 16. Qe2 {[%clk 0:02:01.9]} 16... Qe7 {[%clk
0:01:54]} 17. c5 {[%clk 0:01:59.8]} 17... Qe6 {[%clk 0:01:45.8]} 18. Ra3 {[%clk
0:01:54]} 18... Rad8 {[%clk 0:01:42.3]} 19. Rd1 {[%clk 0:01:53.5]} 19... Rxd1+
{[%clk 0:01:19.1]} 20. Qxd1 {[%clk 0:01:52.8]} 20... Rd8 {[%clk 0:01:20]} 21.
Qe2 {[%clk 0:01:47.7]} 21... Qd5 {[%clk 0:01:11.9]} 22. Nbd2 {[%clk 0:01:38]}
22... Qd3 {[%clk 0:01:06.2]} 23. Qxd3 {[%clk 0:01:27.2]} 23... Rxd3 {[%clk
0:01:07.1]} 24. Kf2 {[%clk 0:01:26.5]} 24... e4 {[%clk 0:01:06.3]} 25. Nd4
{[%clk 0:01:25.8]} 25... Rxd2+ {[%clk 0:01:04.4]} 26. Kg3 {[%clk 0:01:25.1]}
26... Be5+ {[%clk 0:01:02.3]} 27. Kh4 {[%clk 0:01:22]} 27... Rxg2 {[%clk
0:01:00.8]} 28. Nxf5 {[%clk 0:01:21.1]} 28... Bf6+ {[%clk 0:00:59.4]} 29. Kh5
{[%clk 0:01:18.6]} 29... Kh7 {[%clk 0:00:58.1]} 0-1

[Event "Early-Titled-Tuesday-Blitz-October-24-2023"]
[Site "Chess.com"]
[Date "2023.10.24"]
[Round "5"]
[White "blitzking1729"]
[Black "Suleyman_Chess06"]
[Result "1-0"]
[WhiteElo "2811"]
[BlackElo "2599"]
[TimeControl "180+1"]
[EndTime "8:52:58 PDT"]
[Termination "blitzking1729 won by resignation"]

1. e4 {[%clk 0:03:00.9]} 1... e6 {[%clk 0:02:58.2]} 2. Nf3 {[%clk 0:02:58.6]}
2... d5 {[%clk 0:02:58.3]} 3. Nc3 {[%clk 0:02:58.7]} 3... Nf6 {[%clk 0:02:57.5]}
4. e5 {[%clk 0:02:53.1]} 4... Nfd7 {[%clk 0:02:57]} 5. d4 {[%clk 0:02:52.6]}
5... c5 {[%clk 0:02:55.1]} 6. dxc5 {[%clk 0:02:52.8]} 6... Nc6 {[%clk
0:02:52.7]} 7. Bf4 {[%clk 0:02:52.1]} 7... Bxc5 {[%clk 0:02:52.8]} 8. Bd3 {[%clk
0:02:49.5]} 8... Qb6 {[%clk 0:02:49.5]} 9. O-O {[%clk 0:02:47.9]} 9... Qxb2
{[%clk 0:02:49.1]} 10. Nb5 {[%clk 0:02:46.8]} 10... O-O {[%clk 0:02:35.9]} 11.
Bd2 {[%clk 0:02:08.1]} 11... a6 {[%clk 0:02:09.7]} 12. Bc3 {[%clk 0:02:06]}
12... Qxb5 {[%clk 0:02:10.1]} 13. Bxb5 {[%clk 0:02:04.9]} 13... axb5 {[%clk
0:02:11]} 14. Qe2 {[%clk 0:02:01]} 14... b4 {[%clk 0:02:10.1]} 15. Bd2 {[%clk
0:02:01.3]} 15... b6 {[%clk 0:02:08.5]} 16. Rfd1 {[%clk 0:01:51.9]} 16... Ba6
{[%clk 0:02:05.5]} 17. Qe1 {[%clk 0:01:52]} 17... Bc4 {[%clk 0:02:03.8]} 18. h4
{[%clk 0:01:51.7]} 18... Bxa2 {[%clk 0:01:55.6]} 19. h5 {[%clk 0:01:45.2]} 19...
b3 {[%clk 0:01:46.7]} 20. cxb3 {[%clk 0:01:42.3]} 20... Bxb3 {[%clk 0:01:47.4]}
21. Rxa8 {[%clk 0:01:41.4]} 21... Rxa8 {[%clk 0:01:46.9]} 22. Rc1 {[%clk
0:01:42.1]} 22... Bc4 {[%clk 0:01:40.2]} 23. Be3 {[%clk 0:01:40.8]} 23... b5
{[%clk 0:01:37]} 24. h6 {[%clk 0:01:33.6]} 24... g6 {[%clk 0:01:26.5]} 25. Bxc5
{[%clk 0:01:33.4]} 25... Nxc5 {[%clk 0:01:27]} 26. Qe3 {[%clk 0:01:33.8]} 26...
Nd3 {[%clk 0:01:23.8]} 27. Qg5 {[%clk 0:01:21.3]} 27... Nxc1 {[%clk 0:01:19.8]}
28. Qf6 {[%clk 0:01:20.4]} 28... Kf8 {[%clk 0:01:20.1]} 29. Qh8+ {[%clk
0:01:18]} 29... Ke7 {[%clk 0:01:20.7]} 30. Qxa8 {[%clk 0:01:18.7]} 30... Nd8
{[%clk 0:01:20.9]} 31. Qa3+ {[%clk 0:01:18.3]} 31... Kd7 {[%clk 0:01:21.4]} 32.
Qxc1 {[%clk 0:01:18]} 32... b4 {[%clk 0:01:22.1]} 33. Ng5 {[%clk 0:01:17.4]}
33... b3 {[%clk 0:01:21.5]} 34. Nxh7 {[%clk 0:01:17.9]} 34... Nc6 {[%clk
0:01:22.1]} 35. Nf6+ {[%clk 0:01:17.4]} 35... Kc7 {[%clk 0:01:21]} 36. h7 {[%clk
0:01:17.5]} 36... Nd4 {[%clk 0:01:21.6]} 37. Qa3 {[%clk 0:01:15]} 1-0

[Event "Early-Titled-Tuesday-Blitz-October-24-2023"]
[Site "Chess.com"]
[Date "2023.10.24"]
[Round "5"]
[White "Giorno"]
[Black "suspiciumchess"]
[Result "1-0"]
[WhiteElo "2547"]
[BlackElo "2292"]
[TimeControl "180+1"]
[EndTime "8:53:27 PDT"]
[Termination "Giorno won by checkmate"]

1. b3 {[%clk 0:03:00.9]} 1... d5 {[%clk 0:02:46.7]} 2. Bb2 {[%clk 0:03:00.1]}
2... Nd7 {[%clk 0:02:47.1]} 3. Nf3 {[%clk 0:02:58]} 3... c6 {[%clk 0:02:47]} 4.
e3 {[%clk 0:02:57]} 4... Qc7 {[%clk 0:02:46.1]} 5. c4 {[%clk 0:02:56.6]} 5... e5
{[%clk 0:02:44.8]} 6. cxd5 {[%clk 0:02:56.7]} 6... cxd5 {[%clk 0:02:45.7]} 7.
Nc3 {[%clk 0:02:57]} 7... Ngf6 {[%clk 0:02:44.4]} 8. Rc1 {[%clk 0:02:57.1]} 8...
Qb8 {[%clk 0:02:24.6]} 9. Nb5 {[%clk 0:02:56.1]} 9... Bd6 {[%clk 0:02:23.7]} 10.
Nxd6+ {[%clk 0:02:46.4]} 10... Qxd6 {[%clk 0:02:23.2]} 11. Be2 {[%clk 0:02:39]}
11... O-O {[%clk 0:02:21.9]} 12. O-O {[%clk 0:02:39.1]} 12... Re8 {[%clk
0:02:04]} 13. Qc2 {[%clk 0:02:33]} 13... Nf8 {[%clk 0:01:49.8]} 14. d4 {[%clk
0:02:27.1]} 14... e4 {[%clk 0:01:43]} 15. Ne5 {[%clk 0:02:27.4]} 15... Ng6
{[%clk 0:01:39.3]} 16. Qc7 {[%clk 0:02:26.2]} 16... Qxc7 {[%clk 0:01:36.8]} 17.
Rxc7 {[%clk 0:02:25.6]} 17... Nxe5 {[%clk 0:01:08.5]} 18. dxe5 {[%clk
0:02:26.5]} 18... Nd7 {[%clk 0:00:54.1]} 19. Bb5 {[%clk 0:02:24.4]} 19... Rd8
{[%clk 0:00:47.9]} 20. Rfc1 {[%clk 0:02:23.6]} 20... a6 {[%clk 0:00:32.8]} 21.
Bxd7 {[%clk 0:02:23.4]} 21... Bxd7 {[%clk 0:00:30.9]} 22. Rxb7 {[%clk
0:02:23.9]} 22... Be6 {[%clk 0:00:22.6]} 23. h3 {[%clk 0:02:20.9]} 23... Rac8
{[%clk 0:00:21]} 24. Rbc7 {[%clk 0:02:14]} 24... Rxc7 {[%clk 0:00:21.1]} 25.
Rxc7 {[%clk 0:02:14.9]} 25... h5 {[%clk 0:00:21.6]} 26. Bd4 {[%clk 0:02:13]}
26... Kh7 {[%clk 0:00:18.7]} 27. Ra7 {[%clk 0:02:11.8]} 27... Bc8 {[%clk
0:00:07.2]} 28. Rxf7 {[%clk 0:02:11]} 28... Kg6 {[%clk 0:00:06.3]} 29. Ra7
{[%clk 0:02:06.1]} 29... Rd7 {[%clk 0:00:03.6]} 30. Ra8 {[%clk 0:02:05]} 30...
Rc7 {[%clk 0:00:03.8]} 31. Kh1 {[%clk 0:02:01.3]} 31... Kf5 {[%clk 0:00:03.9]}
32. Kh2 {[%clk 0:02:01.5]} 32... Ke6 {[%clk 0:00:03.7]} 33. h4 {[%clk 0:02:00]}
33... Rc2 {[%clk 0:00:03.7]} 34. Kg3 {[%clk 0:01:59.9]} 34... Bb7 {[%clk
0:00:03.6]} 35. Ra7 {[%clk 0:01:59.4]} 35... Kf7 {[%clk 0:00:01.9]} 36. Rxb7+
{[%clk 0:01:59.3]} 36... Ke6 {[%clk 0:00:01.6]} 37. Rxg7 {[%clk 0:01:58.9]}
37... Rxa2 {[%clk 0:00:02]} 38. Rg6+ {[%clk 0:01:59.3]} 38... Kf5 {[%clk
0:00:01.6]} 39. Rf6# {[%clk 0:01:59]} 1-0

[Event "Early-Titled-Tuesday-Blitz-October-24-2023"]
[Site "Chess.com"]
[Date "2023.10.24"]
[Round "5"]
[White "MokshAD1603"]
[Black "mind1mover"]
[Result "1-0"]
[WhiteElo "2627"]
[BlackElo "2797"]
[TimeControl "180+1"]
[EndTime "8:53:28 PDT"]
[Termination "MokshAD1603 won on time"]

1. c4 {[%clk 0:03:00.9]} 1... e5 {[%clk 0:02:56.9]} 2. g3 {[%clk 0:02:59.9]}
2... Nc6 {[%clk 0:02:53.4]} 3. Bg2 {[%clk 0:03:00]} 3... Nf6 {[%clk 0:02:51.6]}
4. Nc3 {[%clk 0:02:57.6]} 4... Bb4 {[%clk 0:02:51.7]} 5. Nd5 {[%clk 0:02:57.8]}
5... a5 {[%clk 0:02:52]} 6. e3 {[%clk 0:02:50.7]} 6... Nxd5 {[%clk 0:02:47.6]}
7. cxd5 {[%clk 0:02:49.3]} 7... Ne7 {[%clk 0:02:48.2]} 8. Ne2 {[%clk 0:02:46.1]}
8... c6 {[%clk 0:02:48.6]} 9. a3 {[%clk 0:02:40.5]} 9... Bc5 {[%clk 0:02:48.7]}
10. d4 {[%clk 0:02:26.9]} 10... exd4 {[%clk 0:02:47.5]} 11. exd4 {[%clk
0:02:27.8]} 11... Bd6 {[%clk 0:02:36.9]} 12. Nc3 {[%clk 0:02:26.2]} 12... cxd5
{[%clk 0:02:29.7]} 13. O-O {[%clk 0:02:22.2]} 13... O-O {[%clk 0:02:28.7]} 14.
Re1 {[%clk 0:02:19.9]} 14... Re8 {[%clk 0:02:06]} 15. Bg5 {[%clk 0:02:18.7]}
15... h6 {[%clk 0:02:05]} 16. Bxe7 {[%clk 0:02:15.7]} 16... Bxe7 {[%clk
0:02:00.3]} 17. Nxd5 {[%clk 0:02:14.5]} 17... d6 {[%clk 0:01:51.1]} 18. Rc1
{[%clk 0:02:14]} 18... Rb8 {[%clk 0:01:16.1]} 19. Qe2 {[%clk 0:02:05.6]} 19...
Kf8 {[%clk 0:00:20.1]} 20. Nc7 {[%clk 0:02:03.7]} 20... Bd7 {[%clk 0:00:14.9]}
21. Nxe8 {[%clk 0:02:03.9]} 21... Qxe8 {[%clk 0:00:13.4]} 22. Rc7 {[%clk
0:02:02.5]} 22... Qd8 {[%clk 0:00:13.2]} 23. Rxb7 {[%clk 0:02:01.8]} 23... Rxb7
{[%clk 0:00:13.8]} 24. Bxb7 {[%clk 0:02:02.6]} 24... Bf6 {[%clk 0:00:14.4]} 25.
d5 {[%clk 0:01:59.1]} 25... Qb6 {[%clk 0:00:08.8]} 26. Bc8 {[%clk 0:01:52.8]}
26... Bb5 {[%clk 0:00:08.9]} 27. Qe3 {[%clk 0:01:41.5]} 27... Qb8 {[%clk
0:00:09.3]} 28. Bh3 {[%clk 0:01:39.5]} 28... h5 {[%clk 0:00:03.5]} 29. Qb3
{[%clk 0:01:39.8]} 29... a4 {[%clk 0:00:01.8]} 30. Qb4 {[%clk 0:01:39.8]} 30...
g6 {[%clk 0:00:01.6]} 31. Bf1 {[%clk 0:01:39.9]} 1-0

[Event "Early-Titled-Tuesday-Blitz-October-24-2023"]
[Site "Chess.com"]
[Date "2023.10.24"]
[Round "5"]
[White "ExchangeAB"]
[Black "diamonds13"]
[Result "0-1"]
[WhiteElo "2532"]
[BlackElo "2318"]
[TimeControl "180+1"]
[EndTime "8:53:29 PDT"]
[Termination "diamonds13 won by resignation"]

1. d4 {[%clk 0:03:00.9]} 1... Nf6 {[%clk 0:02:52.6]} 2. Nc3 {[%clk 0:03:00.2]}
2... e6 {[%clk 0:02:52.8]} 3. e4 {[%clk 0:02:59.3]} 3... d5 {[%clk 0:02:43.4]}
4. exd5 {[%clk 0:02:56]} 4... exd5 {[%clk 0:02:43]} 5. Bd3 {[%clk 0:02:56.7]}
5... Be7 {[%clk 0:02:40.1]} 6. Nge2 {[%clk 0:02:56.7]} 6... O-O {[%clk
0:02:39.6]} 7. O-O {[%clk 0:02:57.2]} 7... h6 {[%clk 0:02:38.8]} 8. Ng3 {[%clk
0:02:56.4]} 8... c6 {[%clk 0:02:37.5]} 9. Nf5 {[%clk 0:02:55.2]} 9... Bxf5
{[%clk 0:02:31.6]} 10. Bxf5 {[%clk 0:02:56.1]} 10... Na6 {[%clk 0:02:31.6]} 11.
Ne2 {[%clk 0:02:55.1]} 11... Nc7 {[%clk 0:02:28.1]} 12. c3 {[%clk 0:02:54.4]}
12... Ne4 {[%clk 0:02:22.3]} 13. Bh3 {[%clk 0:02:51.7]} 13... f5 {[%clk
0:02:20.6]} 14. f3 {[%clk 0:02:45]} 14... Ng5 {[%clk 0:02:17.1]} 15. Nf4 {[%clk
0:02:31.5]} 15... Bd6 {[%clk 0:02:08.5]} 16. Re1 {[%clk 0:02:21.6]} 16... Re8
{[%clk 0:01:59.5]} 17. Rxe8+ {[%clk 0:02:11.3]} 17... Qxe8 {[%clk 0:01:58.7]}
18. Bxf5 {[%clk 0:02:12]} 18... Qf7 {[%clk 0:01:54.6]} 19. g4 {[%clk 0:02:03.7]}
19... Bxf4 {[%clk 0:01:50.5]} 20. Bxf4 {[%clk 0:02:03.5]} 20... Nh3+ {[%clk
0:01:50.6]} 21. Kh1 {[%clk 0:01:57.8]} 21... Nf2+ {[%clk 0:01:50.1]} 22. Kg2
{[%clk 0:01:56.3]} 22... Nxd1 {[%clk 0:01:49.8]} 23. Rxd1 {[%clk 0:01:57]} 23...
Ne6 {[%clk 0:01:48.2]} 24. Be5 {[%clk 0:01:55.7]} 24... g6 {[%clk 0:01:47.1]}
25. Bc2 {[%clk 0:01:47.2]} 25... Nf4+ {[%clk 0:01:46.4]} 26. Kg3 {[%clk
0:01:45.2]} 26... Rf8 {[%clk 0:01:45.3]} 27. Rf1 {[%clk 0:01:40.8]} 27... h5
{[%clk 0:01:41.9]} 28. h3 {[%clk 0:01:29.1]} 28... h4+ {[%clk 0:01:39.7]} 29.
Kh2 {[%clk 0:01:26.3]} 29... g5 {[%clk 0:01:34.3]} 30. Bf5 {[%clk 0:01:22.7]}
30... Ng6 {[%clk 0:01:33]} 31. Bd6 {[%clk 0:00:59.4]} 31... Re8 {[%clk
0:01:29.5]} 32. Rf2 {[%clk 0:00:58.7]} 32... Re1 {[%clk 0:01:24.5]} 33. Rd2
{[%clk 0:00:54.1]} 33... Nf4 {[%clk 0:01:23.9]} 34. a4 {[%clk 0:00:42.6]} 34...
Qe8 {[%clk 0:01:18.9]} 35. Be5 {[%clk 0:00:41.3]} 35... Rxe5 {[%clk 0:01:16.4]}
36. dxe5 {[%clk 0:00:42.2]} 36... Qxe5 {[%clk 0:01:16]} 0-1